bitfinex/quotes_BTCUSD_20230110
["timestamp","ask_amount","ask_price","bid_price","bid_amount"]
[1673376001448,0.85270547,17431.0,17429.0,1.25298433]
[1673376001846,0.60749988,17432.0,17429.0,1.25298433]
[1673376002064,1.52619343,17432.0,17429.0,1.49066222]
[1673376002279,1.52619343,17432.0,17430.0,0.52483132]
[1673376002500,1.18346104,17432.0,17430.0,0.52483132]
[1673376002717,0.14982463,17432.0,17431.0,0.1099]
[1673376003157,0.14982463,17432.0,17431.0,0.469123]
[1673376003376,1.16334619,17434.0,17431.0,0.1099]
[1673376003596,1.31316303,17434.0,17432.0,0.359223]
[1673376003809,1.31316303,17434.0,17431.0,0.68359]
[1673376004024,1.31316303,17434.0,17431.0,0.92126789]
[1673376004286,1.31316303,17434.0,17431.0,0.68359]
[1673376004696,1.31316303,17434.0,17432.0,0.59975947]
[1673376004919,0.40749209,17434.0,17432.0,1.52098736]
[1673376005106,0.14981684,17434.0,17433.0,0.359223]
[1673376005335,0.14981684,17434.0,17432.0,1.28330947]
[1673376005336,0.60040764,17435.0,17432.0,1.28329247]
[1673376005635,1.29867973,17435.0,17432.0,2.09459936]
[1673376005871,1.29867973,17435.0,17432.0,1.85692147]
[1673376006600,1.49867973,17435.0,17432.0,1.85692147]
[1673376006839,0.25767525,17434.0,17432.0,1.85692147]
[1673376008528,0.25767525,17434.0,17433.0,0.53868122]
[1673376008775,0.60040764,17434.0,17433.0,0.53868122]
[1673376009719,0.25767525,17434.0,17433.0,0.53868122]
[1673376009963,0.60040764,17434.0,17433.0,0.53868122]
[1673376010948,1.49971079,17434.0,17432.0,0.1099]
[1673376011189,0.42970762,17433.0,17432.0,0.1099]
[1673376011424,0.80055662,17433.0,17432.0,0.1099]
[1673376011658,0.80055662,17433.0,17431.0,1.25755919]
[1673376011894,0.17188648,17432.0,17431.0,1.25755919]
[1673376012126,0.31202127,17432.0,17430.0,0.683599]
[1673376012358,0.17188648,17431.0,17429.0,0.683627]
[1673376012614,0.31202127,17431.0,17430.0,0.65068609]
[1673376012836,0.17188648,17431.0,17430.0,0.65068609]
[1673376013569,1.64558763,17431.0,17428.0,1.16497451]
[1673376013809,1.44299003,17431.0,17428.0,1.16497451]
[1673376014272,1.30285524,17431.0,17428.0,1.16497451]
[1673376014550,0.17188648,17430.0,17428.0,1.36497451]
[1673376014786,1.30285524,17431.0,17428.0,1.36497451]
[1673376015026,1.10285524,17431.0,17428.0,2.1764414]
[1673376015265,1.10285524,17431.0,17429.0,0.97746079]
[1673376015502,1.10285524,17431.0,17429.0,0.61823779]
[1673376015789,0.84503101,17431.0,17429.0,0.61823779]
[1673376017409,0.73440426,17431.0,17428.0,0.01]
[1673376017654,1.41906781,17431.0,17428.0,0.68393178]
[1673376017874,0.17188648,17429.0,17428.0,0.68393178]
[1673376018115,0.17188648,17429.0,17428.0,0.01]
[1673376018116,0.60055662,17429.0,17428.0,0.01]
[1673376018374,1.45977962,17429.0,17428.0,0.01]
[1673376018620,0.80055662,17429.0,17428.0,0.01]
[1673376018871,0.62960242,17429.0,17428.0,0.01]
[1673376019103,0.92960242,17429.0,17428.0,0.01]
[1673376019565,0.62960242,17429.0,17428.0,0.01]
[1673376020546,1.10905662,17429.0,17428.0,0.01]
[1673376020782,0.18027693,17429.0,17428.0,0.01]
[1673376021085,1.68736304,17430.0,17428.0,0.82618642]
[1673376021086,0.57944395,17430.0,17428.0,0.82618642]
[1673376021321,0.17177693,17430.0,17428.0,0.93608642]
[1673376021558,1.22013562,17431.0,17428.0,0.69840853]
[1673376021559,1.04918016,17431.0,17428.0,0.69840853]
[1673376021799,1.04918016,17431.0,17428.0,0.93608642]
[1673376022033,0.79135593,17431.0,17428.0,0.93608642]
[1673376022275,0.79135593,17431.0,17428.0,0.69840853]
[1673376022510,0.79135593,17431.0,17428.0,1.50978357]
[1673376022744,0.79135593,17431.0,17428.0,1.27210568]
[1673376023231,0.79135593,17431.0,17429.0,0.67826285]
[1673376024216,1.04918016,17431.0,17429.0,0.67826285]
[1673376024672,1.04918016,17431.0,17428.0,0.12981315]
[1673376024923,0.69946397,17430.0,17428.0,0.12981315]
[1673376025145,0.83959876,17430.0,17428.0,0.12981315]
[1673376025376,1.01137569,17430.0,17428.0,0.01991315]
[1673376025609,1.12906513,17430.0,17428.0,0.01991315]
[1673376025846,1.32906513,17430.0,17428.0,0.01991315]
[1673376026604,1.32906513,17430.0,17429.0,0.03652931]
[1673376027083,1.0712409,17430.0,17429.0,0.03652931]
[1673376028255,0.37177693,17430.0,17429.0,0.03652931]
[1673376028494,0.62960116,17430.0,17429.0,0.03652931]
[1673376028990,2.38275892,17430.0,17429.0,0.03652931]
[1673376029220,2.38275892,17430.0,17429.0,0.04652931]
[1673376029221,3.83047195,17430.0,17429.0,0.04652931]
[1673376029455,4.0423344,17430.0,17429.0,0.04652931]
[1673376029685,3.22115551,17430.0,17429.0,0.04652931]
[1673376029916,2.86193251,17430.0,17429.0,0.04652931]
[1673376030167,3.22115551,17430.0,17429.0,0.04652931]
[1673376030406,3.39202863,17430.0,17429.0,0.04652931]
[1673376030892,2.86192404,17430.0,17429.0,0.04652931]
[1673376031118,3.39202863,17430.0,17429.0,0.04652931]
[1673376031884,3.38702863,17430.0,17429.0,0.04652931]
[1673376032135,3.43314248,17430.0,17429.0,0.04652931]
[1673376032858,3.3686211,17430.0,17429.0,0.04652931]
[1673376033103,3.21549891,17430.0,17429.0,0.04652931]
[1673376033349,3.04951793,17430.0,17429.0,0.04652931]
[1673376033588,2.78637733,17430.0,17429.0,0.04652931]
[1673376033830,2.33409101,17430.0,17429.0,0.04652931]
[1673376034084,2.76320842,17430.0,17429.0,0.04652931]
[1673376034315,3.28035444,17430.0,17429.0,0.05652931]
[1673376035042,3.73264076,17430.0,17429.0,0.05652931]
[1673376035310,3.05023395,17430.0,17429.0,0.05652931]
[1673376035546,2.78637733,17430.0,17429.0,0.05652931]
[1673376035790,3.45431045,17430.0,17429.0,0.05652931]
[1673376036036,3.90659537,17430.0,17429.0,0.05652931]
[1673376036277,3.3092631,17430.0,17429.0,0.05652931]
[1673376036793,3.3042631,17430.0,17429.0,0.05652931]
[1673376037276,3.10122366,17430.0,17429.0,0.05652931]
[1673376037766,3.74714776,17430.0,17429.0,0.05152931]
[1673376038010,3.10122366,17430.0,17429.0,0.05152931]
[1673376038414,4.14745765,17430.0,17429.0,0.05152931]
[1673376038666,3.375325,17430.0,17429.0,0.05152931]
[1673376038939,3.86744297,17430.0,17429.0,0.05152931]
[1673376039189,3.43331553,17430.0,17429.0,0.05152931]
[1673376039721,3.58318434,17430.0,17429.0,0.05152931]
[1673376041247,3.58318434,17430.0,17429.0,0.04600068]
[1673376041504,4.09728292,17430.0,17429.0,0.04600068]
[1673376042300,4.09228292,17430.0,17429.0,0.04600068]
[1673376042787,4.63625561,17430.0,17429.0,0.04600068]
[1673376043535,4.09228292,17430.0,17429.0,0.04600068]
[1673376044087,4.17460438,17430.0,17429.0,0.04600068]
[1673376044310,4.68870296,17430.0,17429.0,0.04600068]
[1673376044563,4.09228292,17430.0,17429.0,0.04600068]
[1673376044820,3.68808434,17430.0,17429.0,0.04600068]
[1673376045071,0.2,17429.0,17422.0,0.76860557]
[1673376045318,0.17143473,17426.0,17422.0,0.76860557]
[1673376045567,1.07324579,17425.0,17422.0,0.76860557]
[1673376045814,0.14013479,17424.0,17422.0,0.0017772]
[1673376046076,1.457706,17425.0,17422.0,0.0017772]
[1673376046333,0.2,17424.0,17422.0,0.0017772]
[1673376046594,2.015565,17424.0,17422.0,0.0017772]
[1673376047597,1.761544,17424.0,17422.0,0.0017772]
[1673376049893,1.461544,17424.0,17422.0,0.0017772]
[1673376050139,1.761544,17424.0,17422.0,0.0017772]
[1673376050946,1.761544,17424.0,17423.0,0.34934456]
[1673376050947,0.51343017,17424.0,17423.0,0.34934456]
[1673376051203,0.20015,17427.0,17423.0,0.57968967]
[1673376051458,0.00015,17427.0,17425.0,0.1091]
[1673376051812,0.17143473,17428.0,17423.0,0.00176667]
[1673376051814,0.2,17427.0,17423.0,0.00176667]
[1673376052060,0.34013479,17427.0,17423.0,0.34934456]
[1673376052591,0.2,17427.0,17423.0,0.34934456]
[1673376052847,0.51156952,17427.0,17423.0,0.34934456]
[1673376053294,0.3,17426.0,17423.0,0.23944456]
[1673376053558,0.44013479,17426.0,17423.0,0.00176667]
[1673376053804,0.2,17425.0,17423.0,0.00176667]
[1673376054056,0.91402879,17425.0,17423.0,0.00176667]
[1673376054313,0.3,17424.0,17423.0,0.00176667]
[1673376057364,1.63141626,17424.0,17423.0,0.00176667]
[1673376057850,1.99063926,17424.0,17423.0,0.00176667]
[1673376058099,1.85741657,17424.0,17423.0,0.00176667]
[1673376058341,1.63141626,17424.0,17423.0,0.00176667]
[1673376058878,1.33141626,17424.0,17423.0,0.00176667]
[1673376059128,1.63141626,17424.0,17423.0,0.00176667]
[1673376059884,1.33141626,17424.0,17423.0,0.00176667]
[1673376060892,1.90533726,17424.0,17423.0,0.00176667]
[1673376061411,2.56456026,17424.0,17423.0,0.00176667]
[1673376061654,2.55632866,17424.0,17423.0,0.00176667]
[1673376061909,2.56456026,17424.0,17423.0,0.00176667]
[1673376062405,2.20533726,17424.0,17423.0,0.00176667]
[1673376062665,0.2,17423.0,17421.0,0.00194546]
[1673376062913,0.105202,17422.0,17421.0,0.64626989]
[1673376063194,1.13419735,17423.0,17421.0,0.64626989]
[1673376063412,0.83419735,17423.0,17421.0,0.64626989]
[1673376065426,0.57916886,17422.0,17421.0,0.00194546]
[1673376065677,1.45315486,17422.0,17421.0,0.00194546]
[1673376066439,1.65315486,17422.0,17421.0,0.00194546]
[1673376067476,2.46325975,17422.0,17421.0,0.00194546]
[1673376067731,2.82248275,17422.0,17421.0,0.00194546]
[1673376067978,3.07963485,17422.0,17421.0,0.00194546]
[1673376068255,2.81398275,17422.0,17421.0,0.00194546]
[1673376068479,2.89068886,17422.0,17421.0,0.00194546]
[1673376068726,2.81398275,17422.0,17421.0,0.00194546]
[1673376069232,3.07113485,17422.0,17421.0,0.00194546]
[1673376069479,3.41400432,17422.0,17421.0,0.00194546]
[1673376069728,3.90852094,17422.0,17421.0,0.00194546]
[1673376069980,4.36591511,17422.0,17421.0,0.00194546]
[1673376070242,3.74244291,17422.0,17421.0,0.00194546]
[1673376070483,4.19472923,17422.0,17421.0,0.00194546]
[1673376070730,4.25463739,17422.0,17421.0,0.00194546]
[1673376070977,3.311206,17422.0,17421.0,0.00194546]
[1673376071232,3.13992076,17422.0,17421.0,0.00194546]
[1673376071481,3.34157344,17422.0,17421.0,0.00194546]
[1673376071734,3.87021143,17422.0,17421.0,0.00194546]
[1673376072020,4.37281977,17422.0,17421.0,0.00194546]
[1673376072249,3.41677005,17422.0,17421.0,0.00194546]
[1673376072516,3.0738292,17422.0,17421.0,0.00194546]
[1673376073517,2.67610279,17422.0,17421.0,0.00194546]
[1673376074022,3.15474946,17422.0,17421.0,0.00194546]
[1673376074770,2.89744176,17422.0,17421.0,0.00194546]
[1673376075019,2.5375336,17422.0,17421.0,0.00194546]
[1673376076039,2.7948413,17422.0,17421.0,0.00194546]
[1673376076281,3.0948413,17422.0,17421.0,0.00194546]
[1673376076793,3.0863413,17422.0,17421.0,0.00194546]
[1673376077070,3.25795959,17422.0,17421.0,0.00194546]
[1673376078281,3.23113421,17422.0,17421.0,0.00194546]
[1673376078536,3.29104237,17422.0,17421.0,0.00194546]
[1673376078795,3.06584485,17422.0,17421.0,0.00194546]
[1673376079059,2.83439834,17422.0,17421.0,0.00194546]
[1673376079303,3.00593669,17422.0,17421.0,0.00194546]
[1673376079808,3.52483339,17422.0,17421.0,0.00194546]
[1673376080063,3.30593669,17422.0,17421.0,0.00194546]
[1673376080558,3.47709841,17422.0,17421.0,0.00194546]
[1673376080810,3.99766733,17422.0,17421.0,0.00194546]
[1673376081055,3.6544754,17422.0,17421.0,0.00194546]
[1673376081298,4.23365627,17422.0,17421.0,0.00194546]
[1673376081551,4.2336143,17422.0,17421.0,0.00194546]
[1673376081803,3.08358106,17422.0,17421.0,0.00194546]
[1673376082051,3.66657765,17422.0,17421.0,0.00194546]
[1673376082308,3.53631994,17422.0,17421.0,0.00194546]
[1673376082555,3.10707067,17422.0,17421.0,0.00194546]
[1673376083317,3.21587067,17422.0,17421.0,0.00194546]
[1673376083610,4.32412338,17422.0,17421.0,0.00194546]
[1673376084392,4.54392338,17422.0,17421.0,0.00194546]
[1673376085714,3.96453232,17422.0,17421.0,0.00194546]
[1673376086247,3.96453232,17422.0,17421.0,0.00184892]
[1673376086248,3.45022728,17422.0,17421.0,0.00184892]
[1673376088619,3.96453232,17422.0,17421.0,0.00184892]
[1673376088873,3.85573232,17422.0,17421.0,0.00184892]
[1673376089116,4.43512338,17422.0,17421.0,0.00184892]
[1673376089363,3.92081834,17422.0,17421.0,0.00184892]
[1673376091404,3.34142728,17422.0,17421.0,0.00184892]
[1673376092186,3.85573232,17422.0,17421.0,0.00184892]
[1673376092716,4.93403232,17422.0,17421.0,0.00184892]
[1673376095795,0.2,17421.0,17417.0,0.00015]
[1673376096044,0.1717483,17418.0,17417.0,0.00015]
[1673376096291,2.31934209,17418.0,17417.0,0.00015]
[1673376096543,1.8199843,17418.0,17417.0,0.65324471]
[1673376097038,1.8199843,17418.0,17417.0,0.65309471]
[1673376097290,2.07760674,17418.0,17417.0,0.65309471]
[1673376097540,1.6199843,17418.0,17417.0,0.65309471]
[1673376098302,1.3199843,17418.0,17417.0,0.65309471]
[1673376098552,1.8199843,17418.0,17415.0,0.00386079]
[1673376098807,2.29325739,17418.0,17415.0,0.58615841]
[1673376099056,2.55087983,17418.0,17415.0,0.58615841]
[1673376099307,0.2,17417.0,17415.0,0.58615841]
[1673376099571,0.2,17417.0,17416.0,0.65671491]
[1673376099838,2.1531796,17418.0,17416.0,0.65671491]
[1673376100131,0.7458943,17418.0,17416.0,0.65671491]
[1673376100622,0.9458943,17418.0,17416.0,0.65671491]
[1673376101399,1.20351674,17418.0,17416.0,0.65671491]
[1673376101662,0.1717483,17419.0,17417.0,0.34757789]
[1673376101930,0.42937074,17420.0,17418.0,0.70680089]
[1673376102185,0.97286733,17421.0,17419.0,0.359223]
[1673376102186,1.15775912,17421.0,17419.0,0.359223]
[1673376102442,0.56652208,17420.0,17419.0,0.23767789]
[1673376102829,0.73827038,17420.0,17418.0,0.3099]
[1673376103008,0.80111903,17421.0,17419.0,0.468023]
[1673376103009,1.02979643,17421.0,17419.0,0.468023]
[1673376103265,0.42937074,17422.0,17420.0,0.62001576]
[1673376103528,0.1717483,17422.0,17421.0,0.359223]
[1673376103787,0.42937074,17422.0,17420.0,0.1096]
[1673376104040,0.42937074,17422.0,17420.0,0.73104594]
[1673376104291,0.42937074,17421.0,17420.0,0.73104594]
[1673376104797,0.1717483,17421.0,17420.0,0.73104594]
[1673376105821,0.42937074,17422.0,17420.0,0.73119356]
[1673376106070,0.1717483,17421.0,17420.0,0.73104594]
[1673376106839,0.1717483,17421.0,17420.0,1.30509794]
[1673376107091,0.42937074,17422.0,17420.0,1.66432094]
[1673376107346,0.42937074,17422.0,17421.0,0.359223]
[1673376107630,0.42937074,17422.0,17420.0,1.30509794]
[1673376108144,0.42937074,17422.0,17420.0,0.73104594]
[1673376108145,0.62937074,17422.0,17420.0,0.73104594]
[1673376108397,0.1717483,17421.0,17420.0,0.62144594]
[1673376108611,0.3717483,17421.0,17420.0,0.62144594]
[1673376110185,0.42937074,17421.0,17420.0,0.62144594]
[1673376110975,0.56950553,17421.0,17418.0,0.1099]
[1673376111228,0.42971125,17420.0,17418.0,0.56070858]
[1673376111484,0.62971125,17420.0,17419.0,0.60015624]
[1673376111819,0.80159575,17420.0,17419.0,0.60015624]
[1673376112022,0.62970947,17420.0,17419.0,0.60015624]
[1673376112282,0.62970947,17420.0,17417.0,0.51425284]
[1673376112283,1.27220208,17420.0,17417.0,0.51425284]
[1673376112551,1.45453907,17419.0,17417.0,0.51425284]
[1673376112828,0.17189188,17418.0,17417.0,0.51425284]
[1673376114599,1.10870066,17418.0,17416.0,0.1099]
[1673376114857,1.85469578,17418.0,17415.0,0.72311053]
[1673376115109,0.17190223,17417.0,17415.0,0.72311053]
[1673376115618,0.17190223,17417.0,17416.0,0.63534527]
[1673376116133,0.42974005,17417.0,17416.0,0.63534527]
[1673376116396,0.95240235,17417.0,17416.0,0.63534527]
[1673376116655,0.42974005,17417.0,17415.0,0.00386079]
[1673376116919,0.17190223,17417.0,17415.0,0.56239045]
[1673376118474,0.17190223,17417.0,17416.0,0.359223]
[1673376118740,0.17190223,17417.0,17415.0,0.56494353]
[1673376118994,2.25700001,17418.0,17415.0,0.56239045]
[1673376119243,2.25700001,17418.0,17415.0,0.80006834]
[1673376119494,0.42974005,17418.0,17416.0,0.86641022]
[1673376119782,0.17190223,17419.0,17417.0,0.468023]
[1673376120044,0.17190223,17419.0,17418.0,0.359223]
[1673376120306,0.17190223,17419.0,17417.0,0.1088]
[1673376120567,0.75542689,17419.0,17417.0,0.1088]
[1673376120854,1.01326471,17419.0,17417.0,0.1088]
[1673376121334,0.42771205,17419.0,17417.0,0.1088]
[1673376121834,0.42771205,17419.0,17417.0,0.79139109]
[1673376122084,0.16987423,17419.0,17418.0,0.64076998]
[1673376122853,1.08487695,17420.0,17418.0,0.64076998]
[1673376123103,0.88487695,17420.0,17418.0,0.64076998]
[1673376123886,1.42864595,17420.0,17418.0,0.64076998]
[1673376124180,1.08487695,17420.0,17418.0,0.64076998]
[1673376125470,0.88487695,17420.0,17418.0,0.64076998]
[1673376127902,0.88487695,17420.0,17418.0,0.64321438]
[1673376128158,0.62703913,17420.0,17418.0,0.64321438]
[1673376129038,1.18706712,17422.0,17419.0,0.359223]
[1673376129292,1.38706712,17422.0,17420.0,0.36166712]
[1673376129554,1.38706712,17422.0,17420.0,0.24012201]
[1673376129823,0.2,17421.0,17419.0,1.17594597]
[1673376130066,0.45783782,17421.0,17419.0,1.17594597]
[1673376130340,0.45783782,17421.0,17420.0,0.50526881]
[1673376130839,0.80160682,17422.0,17420.0,0.50526881]
[1673376131372,0.17183309,17421.0,17420.0,0.50526881]
[1673376131625,0.62967091,17421.0,17420.0,0.50526881]
[1673376132438,0.42967091,17421.0,17420.0,0.50526881]
[1673376132666,0.07238262,17421.0,17420.0,0.50526881]
[1673376132919,0.07238262,17421.0,17420.0,0.50575938]
[1673376133433,0.80160682,17423.0,17420.0,1.76376338]
[1673376133772,0.80160682,17423.0,17421.0,0.359223]
[1673376133981,1.42560195,17423.0,17421.0,0.574019]
[1673376134242,0.2,17422.0,17420.0,1.4268987]
[1673376134488,0.45783782,17422.0,17420.0,1.18971138]
[1673376135032,1.42560195,17423.0,17420.0,1.76376338]
[1673376135278,1.42560195,17423.0,17421.0,0.69817594]
[1673376135807,1.08183295,17423.0,17421.0,1.27219494]
[1673376136081,1.42560195,17423.0,17421.0,1.27219494]
[1673376136407,1.4255116,17423.0,17421.0,1.27219494]
[1673376136884,1.0817426,17423.0,17421.0,1.27219494]
[1673376137388,0.45774747,17423.0,17421.0,1.27219494]
[1673376137920,1.41748786,17423.0,17421.0,0.69817594]
[1673376139700,1.07371886,17423.0,17421.0,0.69817594]
[1673376139954,1.41748786,17423.0,17421.0,0.69817594]
[1673376140760,0.5944261,17422.0,17421.0,0.69817594]
[1673376141016,0.85226392,17422.0,17421.0,0.69817594]
[1673376141544,0.80151647,17423.0,17421.0,0.69817594]
[1673376142610,0.17180125,17422.0,17421.0,0.69817594]
[1673376143103,0.77340807,17423.0,17421.0,0.69866648]
[1673376143105,0.17180125,17423.0,17421.0,1.84670448]
[1673376143356,0.17180125,17423.0,17422.0,0.359223]
[1673376143608,1.22230796,17424.0,17421.0,1.84618994]
[1673376143609,1.59410921,17424.0,17421.0,1.84618994]
[1673376143874,1.59410921,17424.0,17421.0,1.81618994]
[1673376144179,0.2,17423.0,17421.0,1.81618994]
[1673376144654,0.17180125,17423.0,17421.0,1.81668048]
[1673376145151,0.17180125,17423.0,17421.0,1.81618994]
[1673376145419,0.42963907,17423.0,17421.0,1.24219494]
[1673376145652,0.62963907,17423.0,17421.0,1.24219494]
[1673376145898,0.62963907,17423.0,17421.0,1.24268548]
[1673376146156,0.42963907,17423.0,17421.0,1.24268548]
[1673376147399,0.42963907,17423.0,17422.0,0.6709766]
[1673376147642,0.17180125,17423.0,17422.0,0.6709766]
[1673376148144,1.22230796,17424.0,17422.0,1.03146389]
[1673376148145,0.42963907,17424.0,17422.0,1.03146389]
[1673376148407,0.17180125,17425.0,17423.0,0.35971349]
[1673376148656,0.17180125,17425.0,17424.0,0.933144]
[1673376148907,0.6106878,17426.0,17424.0,1.74474289]
[1673376149158,0.01365909,17426.0,17425.0,0.359223]
[1673376149454,0.01365909,17426.0,17425.0,0.573888]
[1673376149708,0.01365909,17426.0,17425.0,0.933111]
[1673376149961,0.01365909,17426.0,17425.0,0.573888]
[1673376150765,0.01365909,17426.0,17425.0,1.147776]
[1673376151014,0.01365909,17426.0,17425.0,2.01544989]
[1673376151788,0.01365909,17426.0,17425.0,1.506999]
[1673376152044,0.01365909,17426.0,17425.0,1.816099]
[1673376152298,0.01365909,17426.0,17425.0,2.26798302]
[1673376152549,0.01365909,17426.0,17425.0,1.8189107]
[1673376152809,0.01365909,17426.0,17425.0,2.32617615]
[1673376153081,0.01365909,17426.0,17425.0,1.8189107]
[1673376154071,0.01365909,17426.0,17425.0,2.26798302]
[1673376154339,0.01365909,17426.0,17425.0,2.48828302]
[1673376155313,0.01432237,17427.0,17426.0,0.2]
[1673376155548,0.01432237,17427.0,17426.0,2.48540532]
[1673376155797,0.01432237,17427.0,17426.0,3.12586979]
[1673376156052,0.01432237,17427.0,17426.0,2.48540532]
[1673376157847,0.01432237,17427.0,17426.0,2.036333]
[1673376158867,0.01432237,17427.0,17426.0,2.48540532]
[1673376159436,0.01432237,17427.0,17426.0,2.37530532]
[1673376164796,0.01432237,17427.0,17426.0,1.926233]
[1673376165302,0.15445716,17427.0,17426.0,1.73437477]
[1673376165549,0.15445716,17427.0,17426.0,0.94121977]
[1673376165550,0.01432237,17427.0,17426.0,0.94121977]
[1673376165808,0.01432237,17427.0,17426.0,0.58199677]
[1673376167575,0.01432237,17427.0,17426.0,0.58213735]
[1673376168784,0.01432237,17427.0,17426.0,0.57699677]
[1673376169805,0.01432237,17427.0,17426.0,0.93621977]
[1673376170323,0.01432237,17427.0,17426.0,0.57699677]
[1673376171072,0.10332237,17427.0,17426.0,0.58499677]
[1673376172852,0.10332237,17427.0,17426.0,0.58513733]
[1673376174893,0.10332237,17427.0,17426.0,0.15638056]
[1673376175142,0.10332237,17427.0,17426.0,1.95974629]
[1673376175395,0.10332237,17427.0,17426.0,2.53360129]
[1673376175652,0.10332237,17427.0,17426.0,1.88291356]
[1673376175924,0.10332237,17427.0,17426.0,2.5302214]
[1673376176156,0.10332237,17427.0,17426.0,2.08291356]
[1673376177181,0.10332237,17427.0,17426.0,2.58581974]
[1673376179428,0.10332237,17427.0,17426.0,1.73467356]
[1673376179675,0.10332237,17427.0,17426.0,0.53660706]
[1673376180202,0.10332237,17427.0,17426.0,0.5394186]
[1673376181682,0.10332237,17427.0,17426.0,0.8986416]
[1673376182190,0.10332237,17427.0,17426.0,1.4724966]
[1673376182926,0.10332237,17427.0,17426.0,1.51047409]
[1673376183172,0.10332237,17427.0,17426.0,1.15125109]
[1673376184673,0.10332237,17427.0,17426.0,1.51047409]
[1673376185431,0.10332237,17427.0,17426.0,1.50766255]
[1673376185675,0.10332237,17427.0,17426.0,1.14843955]
[1673376186725,0.10332237,17427.0,17426.0,1.14858013]
[1673376186980,0.10332237,17427.0,17426.0,1.14658013]
[1673376188249,0.10332237,17427.0,17426.0,1.50580313]
[1673376188746,0.10332237,17427.0,17426.0,2.07965813]
[1673376189750,0.10332237,17427.0,17426.0,1.72043513]
[1673376190763,0.10332237,17427.0,17426.0,2.07965813]
[1673376191030,0.10332237,17427.0,17426.0,1.55105107]
[1673376191262,0.10332237,17427.0,17426.0,2.11057559]
[1673376193793,0.10332237,17427.0,17426.0,2.11043501]
[1673376194033,0.10332237,17427.0,17426.0,2.1105689]
[1673376194285,0.10332237,17427.0,17426.0,1.7513459]
[1673376194286,0.27512362,17427.0,17426.0,1.7513459]
[1673376194818,0.27512362,17427.0,17426.0,1.17735701]
[1673376195043,0.53296144,17427.0,17426.0,0.6036359]
[1673376195550,0.53296144,17427.0,17426.0,0.60350201]
[1673376197284,0.53296144,17427.0,17426.0,0.04397749]
[1673376197800,1.04822131,17427.0,17426.0,0.04397749]
[1673376198064,1.74932291,17427.0,17426.0,0.04397749]
[1673376198321,1.62906355,17427.0,17426.0,0.04397749]
[1673376198597,2.44165903,17427.0,17426.0,0.04397749]
[1673376198840,3.01548103,17427.0,17426.0,0.04397749]
[1673376199106,2.92648103,17427.0,17426.0,0.03797749]
[1673376199604,2.92648103,17427.0,17426.0,0.03897749]
[1673376199605,2.40201235,17427.0,17426.0,0.03897749]
[1673376199982,3.06245055,17427.0,17426.0,0.00107749]
[1673376200171,0.2,17426.0,17421.0,0.61211647]
[1673376200416,0.42971121,17423.0,17421.0,0.61211647]
[1673376200677,0.91361497,17423.0,17421.0,0.61211647]
[1673376200934,0.42971121,17422.0,17421.0,0.61211647]
[1673376201218,0.42971121,17422.0,17421.0,0.53750614]
[1673376201967,1.20366721,17423.0,17421.0,0.53750614]
[1673376202248,0.2,17422.0,17420.0,0.00532858]
[1673376202512,0.37188448,17422.0,17420.0,0.00532858]
[1673376202771,1.03978074,17422.0,17420.0,0.70536737]
[1673376203039,1.15978074,17422.0,17421.0,0.001]
[1673376203291,1.33978074,17422.0,17420.0,0.70536737]
[1673376203553,0.41888448,17422.0,17420.0,0.70636737]
[1673376203849,0.76336115,17422.0,17420.0,0.70636737]
[1673376205152,0.76336115,17422.0,17420.0,0.00632858]
[1673376205153,1.33734815,17422.0,17420.0,0.00632858]
[1673376205414,0.69220444,17421.0,17420.0,0.00632858]
[1673376206165,0.69220444,17421.0,17420.0,0.00532858]
[1673376206729,0.73920444,17421.0,17420.0,0.00632858]
[1673376207995,1.09842744,17421.0,17420.0,0.00632858]
[1673376208257,0.73920444,17421.0,17420.0,0.00632858]
[1673376212494,0.2115,17421.0,17420.0,0.0064762]
[1673376212734,0.2115,17421.0,17420.0,0.00632858]
[1673376212979,0.21157499,17421.0,17420.0,0.00632858]
[1673376215199,0.21157499,17421.0,17420.0,0.5966601]
[1673376215708,0.04707499,17421.0,17420.0,0.5966601]
[1673376215956,0.04707499,17421.0,17420.0,0.59680772]
[1673376216227,0.04707499,17421.0,17420.0,0.95603072]
[1673376216721,0.04707499,17421.0,17420.0,1.17085972]
[1673376216965,0.04707499,17421.0,17420.0,0.59680772]
[1673376217461,0.04707499,17421.0,17420.0,1.53008272]
[1673376217962,0.04707499,17421.0,17420.0,2.10413472]
[1673376218654,0.04707499,17421.0,17420.0,1.74491172]
[1673376218941,0.04707499,17421.0,17420.0,2.10413472]
[1673376219765,0.1649,17424.0,17421.0,0.2]
[1673376220027,0.3649,17424.0,17421.0,1.01168989]
[1673376220280,0.3649,17424.0,17421.0,1.60040065]
[1673376220782,0.4969,17424.0,17422.0,0.64016117]
[1673376221764,0.359223,17423.0,17422.0,0.64016117]
[1673376222017,1.04977887,17424.0,17422.0,0.64516117]
[1673376222018,1.18177887,17424.0,17422.0,0.64516117]
[1673376222273,0.359223,17423.0,17422.0,0.64516117]
[1673376222530,0.559223,17423.0,17422.0,0.64516117]
[1673376223030,0.559223,17423.0,17422.0,0.005]
[1673376223277,0.859223,17423.0,17420.0,0.57935658]
[1673376223523,0.47213479,17423.0,17422.0,0.005]
[1673376223771,0.332,17423.0,17422.0,0.005]
[1673376225027,0.559223,17423.0,17421.0,0.67610954]
[1673376225278,0.2,17423.0,17421.0,0.67610954]
[1673376226039,0.8356723,17423.0,17421.0,0.67596192]
[1673376226291,0.8166723,17423.0,17421.0,0.67596192]
[1673376226542,0.9086723,17423.0,17421.0,0.68196192]
[1673376227033,0.9086723,17423.0,17421.0,0.68210954]
[1673376228024,0.9086723,17423.0,17421.0,0.006]
[1673376228275,0.9086723,17423.0,17421.0,0.71210264]
[1673376233272,0.63692111,17422.0,17421.0,0.71210264]
[1673376233820,0.80880559,17422.0,17421.0,0.71210264]
[1673376234117,1.06663232,17422.0,17421.0,0.71210264]
[1673376234325,1.06663232,17422.0,17421.0,0.70610264]
[1673376234830,1.06663232,17422.0,17421.0,0.74248711]
[1673376235589,1.43083232,17422.0,17421.0,0.03638447]
[1673376235854,2.92792581,17422.0,17421.0,0.04238447]
[1673376236099,3.09981029,17422.0,17421.0,0.04238447]
[1673376236902,2.64858729,17422.0,17421.0,0.03638447]
[1673376237153,3.13981029,17422.0,17421.0,0.04138447]
[1673376237888,2.79604132,17422.0,17421.0,0.04138447]
[1673376238161,2.43681832,17422.0,17421.0,0.04138447]
[1673376238654,2.79579396,17422.0,17421.0,0.04138447]
[1673376238910,2.36608275,17422.0,17421.0,0.04138447]
[1673376239703,2.36583539,17422.0,17421.0,0.04138447]
[1673376240207,2.88148884,17422.0,17421.0,0.04138447]
[1673376240703,3.14789351,17422.0,17421.0,0.04138447]
[1673376240954,3.14835743,17422.0,17421.0,0.04138447]
[1673376241702,2.63198512,17422.0,17421.0,0.04138447]
[1673376241949,3.76348725,17422.0,17421.0,0.04138447]
[1673376242195,3.774883,17422.0,17421.0,0.04138447]
[1673376242473,3.14808123,17422.0,17421.0,0.04138447]